Cogmind - Beta 11.1 @@@ ROGUE MODE // 2022.09.14 @ 19:07:05 Player: Candesce Result: Self-destructed Performance ------------- Evolutions (6) 3000 Regions Visited (22) 4400 Robots Destroyed (202) 1010 Value Destroyed (8422) 8422 Prototype IDs (52) 1040 Alien Tech Used (0) 0 Bonus (6268) 6268 TOTAL SCORE: 24140 Bonus ------- High Alert Combat Kills 212 Follower Combat Kills 179 Entered Garrisons 1600 Used RIF Installer 4000 Aligned with FarCom 300 Friendly Fire -23 Cogmind --------- Core Integrity 1150/1150 Matter 56/300 Energy 12/100 System Corruption 0% Temperature Cool (0) Movement Treading (160) Location -4/Waste Parts ------- > --- POWER (1) -------- (None) > --- PROPULSION (4) --- Heavy Treads Heavy Treads > --- UTILITY (11) ----- Enhanced Optical Array Advanced Targeting Computer Advanced Targeting Computer Improved Armor Integrity Analyzer Relay Coupler [NC] (22) Relay Coupler [Brawler] (38) Relay Coupler [Sentry] (18) > --- WEAPON (3) ------- (None) > --- INVENTORY (5) ---- Advanced Heavy Siege Treads Improved Matter Compressor (283) Relay Coupler [NC] (44) Heavy Neutron Cannon Peak State ------------ > --- POWER ------------ Neutrino Core > --- PROPULSION ------- Heavy Treads Heavy Treads > --- UTILITY ---------- Improved Cooling System High-capacity Storage Unit Enhanced Optical Array Advanced Targeting Computer Advanced Targeting Computer Improved Armor Integrity Analyzer Improved Transmission Jammer Layered Light Armor Plating Relay Coupler [NC] Relay Coupler [Brawler] Relay Coupler [Sentry] > --- WEAPON ----------- Mini Assault Cannon Mini Assault Cannon Hypervelocity Mass Driver > --- INVENTORY -------- Neutrino Core Advanced Heavy Siege Treads Improved Matter Compressor Advanced Targeting Computer Improved Transmission Jammer Advanced Phase Shifter Relay Coupler [NC] Relay Coupler [Grunt] Relay Coupler [Brawler] Relay Coupler [Specialist] Long-range Tractor Beam Heavy Neutron Cannon KE Penetrator KE Penetrator Mini Assault Cannon Heavy Missile Launcher Long-range Missile Launcher Improved Remote Datajack Power Sword [Rating: 98] Favorites ----------- Power Heavy Ion Engine Engine Heavy Ion Engine Power Core Neutrino Core Propulsion Medium Treads Treads Medium Treads Leg Aluminum Leg Wheel Compact Wheel Utility Advanced Targeting Computer Device Improved Cooling System Storage High-capacity Storage Unit Processor Advanced Targeting Computer Hackware Relay Coupler [NC] Protection Improved Light Armor Plating Weapon Mini Assault Cannon Energy Gun Precision Beam Rifle Energy Cannon Ion Cannon Ballistic Gun Enhanced Autogun Ballistic Cannon Mini Assault Cannon Launcher Heavy Missile Launcher Special Weapon Remote Datajack Impact Weapon Makeshift Hammer Slashing Weapon Chainsword Special Melee Weapon Improved Datajack Build | -11 -10 -10 -10 -9 -8 -8 -8 -8 -7 -7 -7 -7 -6 -6 -6 -6 -5 -5 -5 -5 -4 -4 ------- Run | Scr Mat Min Exi Min Mat Gar Mat Gar Fac Gar Fac Gar Fac Gar Fac Gar Fac Gar Fac Gar Fac Was Slots Evolved 12 | . . . . . 4 . . . 2 . . . 2 . . . 2 . . . 2 . Power . | . . . . . . . . . . . . . . . . . . . . . . . Propulsion 2 | . . . . . 1 . . . . . . . 1 . . . . . . . . . Utility 9 | . . . . . 2 . . . 2 . . . 1 . . . 2 . . . 2 . Weapon 1 | . . . . . 1 . . . . . . . . . . . . . . . . . Parts Attached 248 | 7 11 4 4 7 18 9 10 9 32 3 19 8 5 10 13 10 28 7 5 15 9 5 Power 12 | 1 1 1 . . 1 . . . 3 . 2 . . . . . 2 . . 1 . . Engine 5 | 1 1 . . . 1 . . . 1 . 1 . . . . . . . . . . . Core 7 | . . 1 . . . . . . 2 . 1 . . . . . 2 . . 1 . . Reactor . | . . . . . . . . . . . . . . . . . . . . . . . Propulsion 33 | 2 3 2 2 . 4 . 3 2 2 . 3 . 1 . 1 1 3 1 1 1 . 1 Treads 25 | 2 1 . . . 3 . 3 2 2 . 3 . 1 . 1 1 3 1 1 . . 1 Leg 6 | . . 2 2 . 1 . . . . . . . . . . . . . . 1 . . Wheel 2 | . 2 . . . . . . . . . . . . . . . . . . . . . Hover . | . . . . . . . . . . . . . . . . . . . . . . . Flight . | . . . . . . . . . . . . . . . . . . . . . . . Utility 91 | 2 2 . 1 . 3 3 2 1 15 . 9 3 3 6 9 3 13 2 3 5 5 1 Device 49 | 1 1 . . . . 1 . 1 6 . 4 2 . 5 5 2 10 2 1 5 3 . Storage 5 | 1 1 . 1 . . . . . 1 . . . 1 . . . . . . . . . Processor 7 | . . . . . 1 1 . . . . . . 1 . 1 . . . 1 . 1 1 Hackware 9 | . . . . . 1 . . . 1 . 2 . 1 . 1 1 1 . . . 1 . Protection 21 | . . . . . 1 1 2 . 7 . 3 1 . 1 2 . 2 . 1 . . . Artifact . | . . . . . . . . . . . . . . . . . . . . . . . Weapon 112 | 2 5 1 1 7 10 6 5 6 12 3 5 5 1 4 3 6 10 4 1 8 4 3 Energy Gun 18 | . . . . . 4 2 1 2 . . 3 1 1 . 1 . 1 . 1 1 . . Energy Cannon 12 | . . 1 . 2 1 . . . . . . . . . . 1 4 . . 1 2 . Ballistic Gun 21 | 2 5 . . 2 3 . 2 1 3 2 . 1 . . . . . . . . . . Ballistic Cannon 16 | . . . . . . . . . 3 . . . . 2 1 2 . 2 . 3 . 3 Launcher 19 | . . . . 3 . 2 1 3 . 1 . . . 2 . 2 . 2 . 3 . . Special Weapon 8 | . . . . . . . . . 1 . 2 . . . 1 1 2 . . . 1 . Impact Weapon 2 | . . . . . 2 . . . . . . . . . . . . . . . . . Slashing Weapon 13 | . . . . . . 1 1 . 4 . . 3 . . . . 3 . . . 1 . Piercing Weapon . | . . . . . . . . . . . . . . . . . . . . . . . Special Melee Weapon 3 | . . . 1 . . 1 . . 1 . . . . . . . . . . . . . Unidentified Prototypes 9 | . . . . . 4 . 1 . 1 . 1 . . . 1 . . . . . 1 . Parts Lost 12 | . 1 . . . . . . . . . . . . . . . 4 2 1 1 . 3 Power 1 | . . . . . . . . . . . . . . . . . 1 . . . . . Propulsion 6 | . 1 . . . . . . . . . . . . . . . 2 2 . 1 . . Utility 3 | . . . . . . . . . . . . . . . . . . . 1 . . 2 Weapon 2 | . . . . . . . . . . . . . . . . . 1 . . . . 1 Highest Loss Streak 3 | . 1 . . . . . . . . . . . . . . . 3 1 1 1 . 3 To Critical Strikes 1 | . . . . . . . . . . . . . . . . . . . . 1 . . Average Slot Usage (%) 97 | . 94 100 100 100 99 100 99 100 99 100 100 100 100 100 99 100 93 90 90 91 94 89 Engine 3 | . 14 . . . 7 9 9 9 2 7 5 . . . . . . . . . . . Core 4 | . . 13 14 14 1 . . . 4 . 1 7 6 6 6 6 5 5 5 5 5 4 Treads 20 | . 21 1 . . 14 27 27 27 22 23 23 23 26 26 25 26 22 19 17 12 10 9 Leg 3 | . . 25 28 28 12 . . . . . . . . . . . . . . 1 5 2 Device 11 | . 14 14 14 14 2 8 9 9 7 15 14 15 13 13 12 13 10 11 10 11 12 10 Storage 7 | . 14 14 14 14 9 9 9 9 7 7 7 7 6 6 6 6 5 5 5 5 5 5 Processor 8 | . . . . . 9 9 9 9 7 7 7 7 8 13 13 13 11 11 14 17 18 21 Hackware 5 | . . . . . 9 . . . 7 7 7 7 10 6 6 6 11 11 11 11 15 15 Protection 6 | . . . . . 6 9 8 9 14 7 6 7 6 6 5 6 5 5 4 5 5 4 Energy Gun 4 | . . . . . 12 14 10 16 2 . 4 1 5 6 5 3 . 5 5 1 . . Energy Cannon 1 | . . 13 1 4 3 . . . . . . . . . . 1 1 . . 3 4 1 Ballistic Gun 6 | . 27 14 14 13 6 9 15 9 5 6 . 2 . . . . . . . . . . Ballistic Cannon 7 | . . . . . . . . . 10 15 15 15 13 12 13 12 11 10 11 10 6 12 Naked Turns . | . . . . . . . . . . . . . . . . . . . . . . . Heaviest Build 92 | 14 20 24 49 55 64 63 61 69 69 67 68 66 66 72 72 79 92 92 85 80 87 81 Greatest Support 140 | 40 40 20 60 60 84 84 84 84 76 76 84 84 104 104 104 104 96 88 110 110 90 140 Greatest Overweight (x) 6 | . 6 2 1 . 1 . . . 1 . . . . . . . 1 1 1 . . . Average Overweight (x) . | . . 1 . . . . . . . . . . . . . . . . . . . . Largest Inventory Capacity 20 | 8 10 10 20 20 20 20 20 20 20 20 20 20 20 20 20 20 20 20 20 20 20 20 Average Capacity 18 | 7 9 10 13 20 20 20 20 20 20 20 20 20 20 20 20 20 20 20 20 20 20 19 Most Carried 20 | 3 10 10 14 15 20 20 20 20 20 20 20 20 20 20 20 20 20 19 20 20 20 20 Average Carried 17 | 1 5 9 11 14 17 19 19 19 19 19 19 19 18 19 19 19 19 18 19 19 18 19 Final Capacity 20 | 8 10 10 20 20 20 20 20 20 20 20 20 20 20 20 20 20 20 20 20 20 20 5 Final Carried 20 | 3 10 10 14 15 20 20 20 20 20 20 18 20 20 20 20 20 19 18 20 20 19 5 Class Distribution -------------------- 34% | Skirmisher 29% | Mutant 8% | Tank 8% | Bothacker-Mutant 7% | Bothacker-Skirmisher 4% | Bothacker-Gunner 3% | Botlord-Mutant Dominant Class ---------------- Mutant | -10/Materials Mutant | -10/Mines Mutant | -10/Exiles Mutant | -9/Mines Skirmisher | -8/Materials Skirmisher | -8/Garrison Skirmisher | -8/Materials Skirmisher | -8/Garrison Mutant | -7/Factory Skirmisher | -7/Garrison Skirmisher | -7/Factory Skirmisher | -7/Garrison Skirmisher | -6/Factory Tank | -6/Garrison Skirmisher | -6/Factory Tank | -6/Garrison Bothacker-Mutant | -5/Factory Bothacker-Skirmisher | -5/Garrison Bothacker-Gunner | -5/Factory Bothacker-Gunner | -5/Garrison Botlord-Mutant | -4/Factory Botlord-Gunner | -4/Waste Resources | -11 -10 -10 -10 -9 -8 -8 -8 -8 -7 -7 -7 -7 -6 -6 -6 -6 -5 -5 -5 -5 -4 -4 ----------- Run | Scr Mat Min Exi Min Mat Gar Mat Gar Fac Gar Fac Gar Fac Gar Fac Gar Fac Gar Fac Gar Fac Was Matter Collected 7969 | 299 168 136 80 89 215 259 311 297 699 604 313 305 264 201 570 484 1101 466 . 638 . 470 Remotely 1260 | . . . . . . . . . . . . . . 86 133 . 371 188 . 482 . . Salvage Created 7346 | 121 349 91 . 78 504 780 684 388 427 204 120 263 364 152 164 227 428 226 . 436 . 1340 Parts 325 | 6 26 7 . 3 20 42 45 19 22 11 9 10 18 8 15 7 11 7 . 25 . 14 Haulers Intercepted 3 | . . . . . 1 . 2 . . . . . . . . . . . . . . . Recyclers Shooed 6 | . 3 . . . . . 1 . . . . . 1 . . . 1 . . . . . Parts Field Recycled . | . . . . . . . . . . . . . . . . . . . . . . . Retrieved Matter . | . . . . . . . . . . . . . . . . . . . . . . . Parts Self-Destructed . | . . . . . . . . . . . . . . . . . . . . . . . Prevented . | . . . . . . . . . . . . . . . . . . . . . . . Kills | -11 -10 -10 -10 -9 -8 -8 -8 -8 -7 -7 -7 -7 -6 -6 -6 -6 -5 -5 -5 -5 -4 -4 ------- Run | Scr Mat Min Exi Min Mat Gar Mat Gar Fac Gar Fac Gar Fac Gar Fac Gar Fac Gar Fac Gar Fac Was Combat Hostiles Destroyed 185 | . 10 4 . 8 7 19 16 17 9 10 4 7 6 7 3 9 15 12 . 17 . 5 Guns 57 | . 10 . . . 5 12 13 4 2 1 . . 2 1 2 . . 2 . 3 . . Cannons 71 | . . 4 . 2 . . . . 7 6 4 7 4 3 1 5 15 1 . 7 . 5 AOE 54 | . . . . 6 . 7 2 13 . 3 . . . 3 . 4 . 9 . 7 . . Classes Destroyed 15 | 2 3 . . 1 4 . 1 1 1 . . . . 1 . . . . . . . 1 Worker 6 | . . . . . 1 . 1 . 2 . . . 1 . 1 . . . . . . . Builder 1 | . . . . . . . 1 . . . . . . . . . . . . . . . Tunneler 3 | 2 . . . . . . . . . . . . 1 . . . . . . . . . Hauler 3 | . . . . . 1 . 2 . . . . . . . . . . . . . . . Recycler 6 | 1 1 . . . 2 . . . 1 . . . 1 . . . . . . . . . Operator 4 | . 1 . . . . . 1 . . . . . . . 2 . . . . . . . Swarmer 47 | . 5 3 . 2 . 6 7 4 . 4 . . . . 1 . . 7 . 8 . . Saboteur 3 | . . . . . . . . . . . . . . 3 . . . . . . . . Grunt 86 | . 5 1 . . 4 12 5 11 2 4 2 5 4 2 2 8 8 3 . 8 . . Duelist 3 | . . . . . . . . 2 . . . . . . . . 1 . . . . . Sentry 12 | . . . . . 2 1 3 . 3 . . 1 . 2 . . . . . . . . Hunter 9 | . . . . . 1 . 1 . 1 1 . 1 . . . 1 1 2 . . . . Programmer 14 | . . . . . . . . . 3 1 2 . 2 . . . 5 . . 1 . . Compactor 5 | . . . . . . . . . . . . . . . . . . . . . . 5 Assembled 6 | . . . . 6 . . . . . . . . . . . . . . . . . . Best Kill Streak 14 | 3 4 3 . 4 3 14 6 10 4 4 2 3 4 3 1 5 4 12 . 7 . 5 Combat Bots Only 14 | . 3 3 . 4 2 14 6 10 3 4 2 3 2 3 1 5 4 12 . 7 . 5 Max Kills in Single Turn 4 | 1 2 1 . 2 2 3 2 4 2 3 1 2 2 3 1 2 2 4 . 3 . 2 Gunslinging 1 | . 1 . . . . 1 . . . . . . . . . . . . . . . . Exploded 4 | . . . . 2 . 3 2 4 . 3 . . . 3 . 2 . 4 . 3 . . Melee . | . . . . . . . . . . . . . . . . . . . . . . . Uniques/NPCs Destroyed . | . . . . . . . . . . . . . . . . . . . . . . . Combat | -11 -10 -10 -10 -9 -8 -8 -8 -8 -7 -7 -7 -7 -6 -6 -6 -6 -5 -5 -5 -5 -4 -4 -------- Run | Scr Mat Min Exi Min Mat Gar Mat Gar Fac Gar Fac Gar Fac Gar Fac Gar Fac Gar Fac Gar Fac Was Damage Taken 7991 | . 492 20 . 212 288 352 438 320 597 476 237 179 330 191 136 164 1560 968 81 634 . 316 Core 780 | . 69 . . 37 68 27 49 31 122 81 . 41 56 7 1 . 93 67 . 31 . . Absorbed by Shields 283 | . . . . . . . . . 20 . 16 4 . 96 44 44 . . . 59 . . Regen/Repaired (Parts) 271 | . . . . . 19 . 82 . 83 . . . . . . . 19 . 68 . . . Core Remaining (%) 77 | 100 . . . 57 . . . 68 . . . 65 . . . 92 . . . 80 . . Volleys Fired 424 | 8 39 4 . 13 16 22 27 25 25 22 15 13 12 18 12 18 62 11 . 41 4 17 Largest 3 | 2 2 2 . 2 3 3 3 3 3 3 3 3 3 3 3 3 3 3 . 3 1 3 Hottest 221 | 40 40 80 . 90 187 152 149 142 121 121 176 165 165 165 161 176 176 161 . 221 98 162 Shots Fired 978 | 16 78 8 . 21 46 50 77 51 68 60 28 37 34 44 24 36 142 26 . 82 4 46 Gun 437 | 16 78 4 . 7 41 44 76 41 26 19 7 11 10 16 8 3 3 7 . 20 . . Cannon 458 | . . 4 . 6 5 . . . 40 38 12 26 24 24 12 21 129 13 . 55 3 46 Launcher 53 | . . . . 8 . 6 1 10 . 3 . . . 4 . 8 . 6 . 7 . . Special 30 | . . . . . . . . . 2 . 9 . . . 4 4 10 . . . 1 . Kinetic 635 | 16 78 4 . 7 9 15 48 14 63 57 12 33 24 24 12 16 104 13 . 40 . 46 Thermal 260 | . . 4 . 6 37 29 28 27 3 . 7 4 10 16 8 8 28 7 . 35 3 . Explosive 53 | . . . . 8 . 6 1 10 . 3 . . . 4 . 8 . 6 . 7 . . Electromagnetic . | . . . . . . . . . . . . . . . . . . . . . . . Robot Hit Streak 41 | 4 7 1 . 4 12 10 41 17 21 15 9 11 9 12 10 9 13 6 . 10 3 18 Robot Miss Streak 7 | 1 4 1 . 7 2 2 3 1 2 2 1 2 1 4 2 2 3 2 . 6 . 1 Penetration Max 1 | . . . . . . 1 . . . . . . . . . . . . . . . 1 Secondary Targets 7 | . 1 . . . . 2 3 1 . . . . . . . . . . . . . . Max Gunslinging Chain 1 | . 1 . . . . 1 1 1 . . . . . . . . . . . . . . Shots Hit Robots 674 | 12 47 4 4 4 40 46 62 38 52 36 18 22 23 23 17 22 103 13 . 48 1 39 Core Hits 344 | 5 22 5 . 14 14 30 30 31 17 14 6 13 14 13 8 15 30 23 . 28 . 12 Critical Kills 5 | . . . . . . . 1 . . . . . . . . . . . . . . 4 Critical Parts Destroyed 3 | . . . . . 1 . . . . . . 1 . . . . . . . . . 1 Critical Strikes 47 | . . . . . 3 1 4 3 7 1 1 2 1 2 . . 6 1 . 7 . 8 Burn 17 | . . . . . 2 1 3 3 1 . . . . 1 . . 1 . . 5 . . Destroy 9 | . . . . . . . 1 . . . . 1 . . . . . . . . . 7 Blast 20 | . . . . . . . . . 6 1 1 1 1 1 . . 5 1 . 2 . 1 Smash 1 | . . . . . 1 . . . . . . . . . . . . . . . . . Melee Attacks 90 | . . . 4 . 19 20 5 . 24 1 . 10 . . . . 5 . . . 2 . Impact 19 | . . . . . 19 . . . . . . . . . . . . . . . . . Slashing 52 | . . . . . . 7 5 . 22 1 . 10 . . . . 5 . . . 2 . Piercing . | . . . . . . . . . . . . . . . . . . . . . . . Sneak Attacks 23 | . . . 4 . 2 13 1 . 3 . . . . . . . . . . . . . Combat Hostiles . | . . . . . . . . . . . . . . . . . . . . . . . Follow-up Attacks . | . . . . . . . . . . . . . . . . . . . . . . . Damage Inflicted 20724 | 111 552 113 . 629 958 1660 1343 1910 1302 1140 348 523 601 714 416 1578 2696 1216 . 1919 . 995 Guns 4587 | 111 543 . . 30 487 454 983 545 267 182 111 67 115 132 150 . 49 75 . 286 . . Cannons 8756 | . . 93 . 91 47 . . . 859 688 225 451 486 444 197 311 2632 185 . 1052 . 995 Explosions 5944 | . . . . 484 . 684 199 1365 . 270 . . . 138 . 1267 . 956 . 581 . . Melee 1196 | . . . . . 404 522 100 . 170 . . . . . . . . . . . . . Ramming 241 | . 9 20 . 24 20 . 61 . 6 . 12 5 . . 69 . 15 . . . . . Kinetic 9953 | 111 543 . . 30 62 156 573 190 1085 870 225 498 486 444 197 285 2204 185 . 814 . 995 Thermal 3390 | . . 93 . 91 472 298 410 355 41 . 111 20 115 132 150 26 477 75 . 524 . . Explosive 5944 | . . . . 484 . 684 199 1365 . 270 . . . 138 . 1267 . 956 . 581 . . Electromagnetic . | . . . . . . . . . . . . . . . . . . . . . . . Impact 404 | . . . . . 404 . . . . . . . . . . . . . . . . . Slashing 792 | . . . . . . 522 100 . 170 . . . . . . . . . . . . . Piercing . | . . . . . . . . . . . . . . . . . . . . . . . Highest Corruption 4 | . . . . . . . 1 1 . 1 2 2 . . . . 4 4 4 4 . . Average Corruption 2 | . . . . . . . 1 1 . 1 1 2 . . . . 2 4 4 4 . . Corruption Purged . | . . . . . . . . . . . . . . . . . . . . . . . Corruption Blocked . | . . . . . . . . . . . . . . . . . . . . . . . Effects 89 | . . . . . . . 9 5 . 3 8 8 . . . . 15 9 13 19 . . Message Errors 28 | . . . . . . . 3 2 . 2 2 4 . . . . 5 3 3 4 . . Matter Fused 22 | . . . . . . . 3 . . 1 3 1 . . . . 2 2 4 6 . . Heat Flow Errors 11 | . . . . . . . . 2 . . . 1 . . . . 1 1 3 3 . . Energy Discharges 8 | . . . . . . . . . . . 1 1 . . . . 1 1 1 3 . . Parts Rejected 2 | . . . . . . . . . . . . . . . . . 1 1 . . . . Data Loss (minor) 4 | . . . . . . . 1 . . . 1 1 . . . . . . . 1 . . Data Loss (major) 7 | . . . . . . . 1 1 . . . . . . . . 4 . 1 . . . Misfires 1 | . . . . . . . . . . . 1 . . . . . . . . . . . Alerts 3 | . . . . . . . . . . . . . . . . . 1 . 1 1 . . Weapon Failures 3 | . . . . . . . 1 . . . . . . . . . . 1 . 1 . . Overload Shots . | . . . . . . . . . . . . . . . . . . . . . . . Overflow Damage 660 | . . . . 88 163 27 63 43 7 32 23 . . . 19 71 104 6 . 14 . . Projectiles 193 | . . . . . . . . . . 32 23 . . . 19 1 104 . . 14 . . Explosions 265 | . . . . 88 . 3 55 43 . . . . . . . 70 . 6 . . . . Melee 202 | . . . . . 163 24 8 . 7 . . . . . . . . . . . . . Knockbacks 58 | . . 1 . . 1 . . . 4 7 4 2 6 1 3 2 16 2 . 9 . . Impact 4 | . . 1 . . 1 . . . . . 1 . . . 1 . . . . . . . Kinetic 51 | . . . . . . . . . 4 6 3 2 6 1 2 2 14 2 . 9 . . Secondary 3 | . . . . . . . . . . 1 . . . . . . 2 . . . . . Self-Inflicted Damage 209 | . . . . 51 . 36 . 35 . 9 . . 38 33 . . . 7 . . . . Shots 10 | . . . . 3 . 2 . 1 . 1 . . 1 1 . . . 1 . . . . Rammed 25 | 1 5 . . . 1 . 6 . 1 . 2 1 . . 5 . 3 . . . . . Targets Rammed 41 | 1 5 5 . 3 5 . 8 . 1 . 2 1 1 . 6 . 3 . . . . . Kicked 11 | . . 5 . 3 3 . . . . . . . . . . . . . . . . . Crushed 5 | . . . . . 1 . 2 . . . . . 1 . 1 . . . . . . . Highest Temperature 462 | . 18 72 . 208 462 189 152 332 349 50 297 147 54 61 15 70 171 73 225 346 114 . Average Temperature 81 | . 8 31 . 83 178 59 43 128 91 17 106 27 16 20 7 24 47 46 94 112 63 . Received Heat Transfer 2455 | . 144 . . 220 153 180 99 180 93 126 70 69 126 83 57 75 531 81 . 168 . . Effects 3 | . . . . . 2 . . . . . . . . . . . . . . 1 . . Shutdowns 1 | . . . . . 1 . . . . . . . . . . . . . . . . . Energy Bleed 1 | . . . . . . . . . . . . . . . . . . . . 1 . . Short Circuit 1 | . . . . . 1 . . . . . . . . . . . . . . . . . Siege Activations . | . . . . . . . . . . . . . . . . . . . . . . . Robots Corrupted . | . . . . . . . . . . . . . . . . . . . . . . . Combat Hostiles . | . . . . . . . . . . . . . . . . . . . . . . . Parts Fried 2 | . . . . . 2 . . . . . . . . . . . . . . . . . Impact Corruptions 4 | . . . . . 4 . . . . . . . . . . . . . . . . . Robots Melted 1 | . . . . . . . 1 . . . . . . . . . . . . . . . Combat Hostiles 1 | . . . . . . . 1 . . . . . . . . . . . . . . . Parts Melted 16 | . . . . . 2 . 5 4 . . 1 . 1 . . . 1 . . 2 . . Heat Transferred 8038 | . . 148 . 148 1147 740 1110 999 148 . 225 37 222 333 222 50 898 111 . 1500 . . Parts Sabotaged . | . . . . . . . . . . . . . . . . . . . . . . . Parts Stolen . | . . . . . . . . . . . . . . . . . . . . . . . Parts Stripped . | . . . . . . . . . . . . . . . . . . . . . . . Power Chain Reactions . | . . . . . . . . . . . . . . . . . . . . . . . Missiles Intercepted . | . . . . . . . . . . . . . . . . . . . . . . . Alert | -11 -10 -10 -10 -9 -8 -8 -8 -8 -7 -7 -7 -7 -6 -6 -6 -6 -5 -5 -5 -5 -4 -4 ------- Run | Scr Mat Min Exi Min Mat Gar Mat Gar Fac Gar Fac Gar Fac Gar Fac Gar Fac Gar Fac Gar Fac Was Peak Influence 630 | 15 324 100 . 134 269 605 613 630 365 323 213 236 409 394 221 294 195 351 195 417 220 14 Initial 330 | . 9 69 . . 52 102 294 166 330 56 169 14 123 167 206 49 154 67 184 . 218 12 Average 180 | 7 163 73 . 22 147 304 307 463 153 216 120 126 279 307 73 194 83 233 160 295 201 12 Maximum Alert Level 2 | . 1 . . . 1 2 2 2 1 1 1 1 2 1 1 1 . 1 . 2 1 . Low Security (%) 61 | 100 78 100 . 100 79 23 28 9 66 39 91 76 17 13 79 32 100 39 100 21 8 100 Level 1 31 | . 21 . . . 20 52 47 20 33 60 8 23 70 86 20 67 . 60 . 65 91 . Level 2 6 | . . . . . . 24 24 70 . . . . 12 . . . . . . 12 . . Level 3 . | . . . . . . . . . . . . . . . . . . . . . . . Level 4 . | . . . . . . . . . . . . . . . . . . . . . . . Level 5 . | . . . . . . . . . . . . . . . . . . . . . . . High Security . | . . . . . . . . . . . . . . . . . . . . . . . Max Security . | . . . . . . . . . . . . . . . . . . . . . . . Squads Dispatched 26 | . 2 1 . . 3 . 4 . 4 . 3 . 2 . 2 . 3 . 1 . 1 . Investigation 9 | . . 1 . . 1 . 3 . . . 1 . . . . . 1 . 1 . 1 . Extermination 9 | . . . . . . . . . 3 . 2 . 1 . 1 . 2 . . . . . Reinforcement 8 | . 2 . . . 2 . 1 . 1 . . . 1 . 1 . . . . . . . Assault . | . . . . . . . . . . . . . . . . . . . . . . . Garrison . | . . . . . . . . . . . . . . . . . . . . . . . Intercept . | . . . . . . . . . . . . . . . . . . . . . . . Searches Triggered . | . . . . . . . . . . . . . . . . . . . . . . . Construction Impeded . | . . . . . . . . . . . . . . . . . . . . . . . Haulers Reinforced . | . . . . . . . . . . . . . . . . . . . . . . . Active Scanning Responses . | . . . . . . . . . . . . . . . . . . . . . . . Cargo Convoy Interrupts . | . . . . . . . . . . . . . . . . . . . . . . . Stealth | -11 -10 -10 -10 -9 -8 -8 -8 -8 -7 -7 -7 -7 -6 -6 -6 -6 -5 -5 -5 -5 -4 -4 --------- Run | Scr Mat Min Exi Min Mat Gar Mat Gar Fac Gar Fac Gar Fac Gar Fac Gar Fac Gar Fac Gar Fac Was Distress Signals 4 | . 1 . . . . . 1 . . . . . 2 . . . . . . . . . Communications Jammed 4 | . . . . . . . . . . . . . 3 . . . 1 . . . . . Distress Signals 3 | . . . . . . . . . . . . . 3 . . . . . . . . . Times Spotted 238 | . 23 4 . 11 11 18 22 14 12 10 6 7 12 7 11 11 20 16 . 17 1 5 Peak Tracking Total 10 | . 4 2 . 5 2 6 5 4 3 4 2 3 4 3 2 5 4 10 . 6 1 2 Tactical Retreats 10 | . 1 . . . . . 1 . 1 1 . 1 . . . 1 1 1 . 2 . . Traps | -11 -10 -10 -10 -9 -8 -8 -8 -8 -7 -7 -7 -7 -6 -6 -6 -6 -5 -5 -5 -5 -4 -4 ------- Run | Scr Mat Min Exi Min Mat Gar Mat Gar Fac Gar Fac Gar Fac Gar Fac Gar Fac Gar Fac Gar Fac Was Traps Triggered 17 | . 3 . . . . . 3 . 3 1 1 . . . 2 . . 2 1 . 1 . Indirectly . | . . . . . . . . . . . . . . . . . . . . . . . Trap Hack Attempts . | . . . . . . . . . . . . . . . . . . . . . . . Triggered . | . . . . . . . . . . . . . . . . . . . . . . . Disarmed . | . . . . . . . . . . . . . . . . . . . . . . . Reprogrammed . | . . . . . . . . . . . . . . . . . . . . . . . Reused . | . . . . . . . . . . . . . . . . . . . . . . . Traps Extracted . | . . . . . . . . . . . . . . . . . . . . . . . Installed . | . . . . . . . . . . . . . . . . . . . . . . . Triggered . | . . . . . . . . . . . . . . . . . . . . . . . Machines | -11 -10 -10 -10 -9 -8 -8 -8 -8 -7 -7 -7 -7 -6 -6 -6 -6 -5 -5 -5 -5 -4 -4 ---------- Run | Scr Mat Min Exi Min Mat Gar Mat Gar Fac Gar Fac Gar Fac Gar Fac Gar Fac Gar Fac Gar Fac Was Machines Disabled 15 | . . . . . 1 . . 1 . 1 . 2 4 1 . 2 1 1 . 1 . . Max in Single Turn 2 | . . . . . 1 . . 1 . 1 . 1 2 1 . 1 1 1 . 1 . . Garrison Relay 4 | . . . . . . . . 1 . . . . . 1 . 1 . . . 1 . . Machines Sabotaged . | . . . . . . . . . . . . . . . . . . . . . . . Garrisons Compromised . | . . . . . . . . . . . . . . . . . . . . . . . Overloaded Fab Kills . | . . . . . . . . . . . . . . . . . . . . . . . Hacking | -11 -10 -10 -10 -9 -8 -8 -8 -8 -7 -7 -7 -7 -6 -6 -6 -6 -5 -5 -5 -5 -4 -4 --------- Run | Scr Mat Min Exi Min Mat Gar Mat Gar Fac Gar Fac Gar Fac Gar Fac Gar Fac Gar Fac Gar Fac Was Machines Accessed 58 | . 4 1 2 . 5 . 9 . 6 . 7 . 1 . 7 . 9 . 5 . 2 . Terminals 26 | . 4 . . . 2 . 5 . 2 . 2 . . . 3 . 6 . 1 . 1 . Fabricators 7 | . . . . . . . . . . . 3 . . . 2 . 1 . 1 . . . Repair Stations 6 | . . . . . 1 . 1 . 2 . . . . . . . 1 . 1 . . . Recycling Units 3 | . . . . . . . . . . . . . . . 1 . . . 1 . 1 . Scanalyzers 5 | . . . . . 1 . 2 . 1 . 1 . . . . . . . . . . . Garrison Access 8 | . . . . . 1 . 1 . 1 . 1 . 1 . 1 . 1 . 1 . . . Total Hacks 143 | . 13 1 2 . 11 . 25 . 25 . 11 . 1 . 14 . 22 . 14 . 4 . Successful 89 | . 3 1 2 . 9 . 17 . 20 . 7 . 1 . 7 . 13 . 7 . 2 . Failed 53 | . 10 . . . 2 . 7 . 5 . 4 . . . 7 . 9 . 7 . 2 . Catastrophic 5 | . 1 . . . 1 . . . . . . . . . 1 . 2 . . . . . Database Lockouts 1 | . . . . . . . 1 . . . . . . . . . . . . . . . Manual 47 | . 9 . 1 . 5 . 11 . 4 . 1 . . . 4 . 8 . 4 . . . Terminals 72 | . 13 . . . 5 . 16 . 7 . 3 . . . 7 . 16 . 3 . 2 . Fabricators 13 | . . . . . . . . . . . 4 . . . 4 . 2 . 3 . . . Repair Stations 13 | . . . . . 2 . 2 . 3 . . . . . . . 3 . 3 . . . Recycling Units 7 | . . . . . . . . . . . . . . . 2 . . . 3 . 2 . Scanalyzers 26 | . . . . . 3 . 6 . 14 . 3 . . . . . . . . . . . Garrison Access 9 | . . . . . 1 . 1 . 1 . 1 . 1 . 1 . 1 . 2 . . . Terminal Hacks 23 | . 2 1 2 . 1 . 7 . 2 . 1 . . . 1 . 6 . . . . . Record 1 | . . . 1 . . . . . . . . . . . . . . . . . . . Part Schematic 3 | . 1 . . . . . 1 . . . 1 . . . . . . . . . . . Prototype ID Bank 2 | . . . . . 1 . . . . . . . . . . . 1 . . . . . Open Door 1 | . . 1 . . . . . . . . . . . . . . . . . . . . Branch Access Points 2 | . . . . . . . 1 . . . . . . . 1 . . . . . . . Terminal Index 3 | . . . . . . . 1 . 1 . . . . . . . 1 . . . . . Unreport Threat 3 | . . . . . . . 2 . 1 . . . . . . . . . . . . . Locate Traps 1 | . . . . . . . . . . . . . . . . . 1 . . . . . Patrol Status 1 | . . . . . . . . . . . . . . . . . 1 . . . . . Hauler Manifests 2 | . 1 . . . . . . . . . . . . . . . 1 . . . . . Zone Layout 3 | . . . . . . . 2 . . . . . . . . . 1 . . . . . EX-Prototype ID Bank 1 | . . . 1 . . . . . . . . . . . . . . . . . . . Fabricator Hacks 9 | . . . . . . . . . . . 3 . . . 3 . 2 . 1 . . . Network Status 2 | . . . . . . . . . . . 1 . . . 1 . . . . . . . Load Schematic 4 | . . . . . . . . . . . 1 . . . 1 . 1 . 1 . . . Build 3 | . . . . . . . . . . . 1 . . . 1 . 1 . . . . . Repair Station Hacks 10 | . . . . . 2 . 2 . 2 . . . . . . . 2 . 2 . . . Scan Component 5 | . . . . . 1 . 1 . 1 . . . . . . . 1 . 1 . . . Repair 5 | . . . . . 1 . 1 . 1 . . . . . . . 1 . 1 . . . Recycling Unit Hacks 3 | . . . . . . . . . . . . . . . 1 . . . . . 2 . Process 1 | . . . . . . . . . . . . . . . . . . . . . 1 . Report Inventory 2 | . . . . . . . . . . . . . . . 1 . . . . . 1 . Scanalyzer 22 | . . . . . 2 . 5 . 13 . 2 . . . . . . . . . . . Insert Component 10 | . . . . . 1 . 2 . 6 . 1 . . . . . . . . . . . Analyze 12 | . . . . . 1 . 3 . 7 . 1 . . . . . . . . . . . Garrison Access Hacks 8 | . . . . . 1 . 1 . 1 . 1 . 1 . 1 . 1 . 1 . . . Unlock Access 8 | . . . . . 1 . 1 . 1 . 1 . 1 . 1 . 1 . 1 . . . Unauthorized Hacks 14 | . 1 . . . 3 . 2 . 2 . . . . . 1 . 2 . 3 . . . Terminals 11 | . 1 . . . 2 . 2 . 2 . . . . . 1 . 2 . 1 . . . Track 1 | . . . . . . . 1 . . . . . . . . . . . . . . . Botnet 7 | . . . . . 1 . 1 . 1 . . . . . 1 . 2 . 1 . . . Operators 3 | . 1 . . . 1 . . . 1 . . . . . . . . . . . . . Fabricators . | . . . . . . . . . . . . . . . . . . . . . . . Repair Stations . | . . . . . . . . . . . . . . . . . . . . . . . Recycling Units 1 | . . . . . . . . . . . . . . . . . . . 1 . . . Recyclers 1 | . . . . . . . . . . . . . . . . . . . 1 . . . Scanalyzers 1 | . . . . . 1 . . . . . . . . . . . . . . . . . Extract 1 | . . . . . 1 . . . . . . . . . . . . . . . . . Garrison Access 1 | . . . . . . . . . . . . . . . . . . . 1 . . . Decoy 1 | . . . . . . . . . . . . . . . . . . . 1 . . . Data Cores Recovered 2 | . . . . . . . . . . . . . . . 2 . . . . . . . Used . | . . . . . . . . . . . . . . . . . . . . . . . Hacking Detections 45 | . 3 . . . 4 . 7 . 4 . 6 . . . 7 . 8 . 4 . 2 . Full Trace Events 5 | . . . . . . . 1 . . . 1 . . . . . 1 . 1 . 1 . Feedback Events . | . . . . . . . . . . . . . . . . . . . . . . . Feedback Blocked . | . . . . . . . . . . . . . . . . . . . . . . . Robot Schematics Acquired . | . . . . . . . . . . . . . . . . . . . . . . . Robots Built . | . . . . . . . . . . . . . . . . . . . . . . . Authchips . | . . . . . . . . . . . . . . . . . . . . . . . Time . | . . . . . . . . . . . . . . . . . . . . . . . Total Robot Build Rating . | . . . . . . . . . . . . . . . . . . . . . . . Part Schematics Acquired 14 | . 1 . . . 2 . 3 . 6 . 2 . . . . . . . . . . . Parts Built 5 | . . . . . . . . . . . 2 . . . 1 . 2 . . . . . Authchips . | . . . . . . . . . . . . . . . . . . . . . . . Time 241 | . . . . . . . . . . . 36 . . . 169 . 36 . . . . . Total Part Build Rating 18 | . . . . . . . . . . . 6 . . . 6 . 6 . . . . . Parts Repaired 5 | . . . . . 1 . 1 . 1 . . . . . . . 1 . 1 . . . Time 169 | . . . . . 26 . 26 . 51 . . . . . . . 22 . 44 . . . Parts Recycled . | . . . . . . . . . . . . . . . . . . . . . . . Recycled Matter 75 | . . . . . . . . . . . . . . . . . . . . . 75 . Retrieved Matter . | . . . . . . . . . . . . . . . . . . . . . . . Retrieved Components . | . . . . . . . . . . . . . . . . . . . . . . . Parts Scanalyzed 10 | . . . . . 1 . 2 . 6 . 1 . . . . . . . . . . . Part Schematics Acquired 10 | . . . . . 1 . 2 . 6 . 1 . . . . . . . . . . . Parts Damaged 1 | . . . . . . . . . 1 . . . . . . . . . . . . . Bothacking | -11 -10 -10 -10 -9 -8 -8 -8 -8 -7 -7 -7 -7 -6 -6 -6 -6 -5 -5 -5 -5 -4 -4 ------------ Run | Scr Mat Min Exi Min Mat Gar Mat Gar Fac Gar Fac Gar Fac Gar Fac Gar Fac Gar Fac Gar Fac Was Used RIF Installer 8 | . . . . . . 1 . 1 . 1 . 1 . 1 . 1 . 1 . 1 . . Coupler Efficiency 2 | . . . . . . . . . . 1 . . . 1 . . . . . . . . Command Fork 1 | . . . . . . . . . . . . 1 . . . . . . . . . . Threat Obfuscator 1 | . . . . . . . . . . . . . . . . 1 . . . . . . Robot Detection 1 | . . . . . . . . . . . . . . . . . . . . 1 . . Watcher Feeds 1 | . . . . . . . . . . . . . . . . . . 1 . . . . Patrol Navigation 1 | . . . . . . . . 1 . . . . . . . . . . . . . . Robots Hacked 22 | . . . 4 . . . . . 2 . 5 . . . 2 2 6 . . . 1 . Non-combat 16 | . . . 3 . . . . . 1 . 5 . . . 2 . 4 . . . 1 . Combat 6 | . . . 1 . . . . . 1 . . . . . . 2 2 . . . . . Robot Hacks Applied 27 | . . . 4 . . . . . 3 . 6 . . . 3 2 8 . . . 1 . parse_system 7 | . . . 4 . . . . . 1 . 1 . . . . . 1 . . . . . find_chute 3 | . . . . . . . . . . . . . . . . . 2 . . . 1 . map_walls 2 | . . . . . . . . . . . 1 . . . 1 . . . . . . . find_fabricator 2 | . . . . . . . . . 1 . . . . . . . 1 . . . . . drop_inventory 2 | . . . . . . . . . 1 . . . . . . . 1 . . . . . find_recycling 2 | . . . . . . . . . . . 2 . . . . . . . . . . . find_station 1 | . . . . . . . . . . . 1 . . . . . . . . . . . purge_threat 1 | . . . . . . . . . . . . . . . 1 . . . . . . . summon_haulers 1 | . . . . . . . . . . . . . . . 1 . . . . . . . map_route 2 | . . . . . . . . . . . 1 . . . . . 1 . . . . . find_garrison 1 | . . . . . . . . . . . . . . . . . 1 . . . . . formatsys_high 3 | . . . . . . . . . . . . . . . . 2 1 . . . . . Relay Couplers Released 18 | . . . . . . . . 4 . . . . . 5 . 5 . . . 4 . . Machine Destruction 18 | . . . . . . . . 4 . . . . . 5 . 5 . . . 4 . . Attached 6 | . . . . . . . . . 1 . . . 1 . 1 1 1 . . . 1 . Fabnet Peak Effective % . | . . . . . . . . . . . . . . . . . . . . . . . Robots Rewired 6 | . . . . . . 6 . . . . . . . . . . . . . . . . Allies Hacked . | . . . . . . . . . . . . . . . . . . . . . . . Hacks Repelled . | . . . . . . . . . . . . . . . . . . . . . . . Allies | -11 -10 -10 -10 -9 -8 -8 -8 -8 -7 -7 -7 -7 -6 -6 -6 -6 -5 -5 -5 -5 -4 -4 -------- Run | Scr Mat Min Exi Min Mat Gar Mat Gar Fac Gar Fac Gar Fac Gar Fac Gar Fac Gar Fac Gar Fac Was Total Allies 13 | . . . . 1 . 6 . . . . . . . . 3 2 1 . . . . . Largest Group 6 | . . . . 1 . 6 . . . . . . . . 3 2 1 . . . . . Highest-Rated Group 93 | . . . . 31 . 87 . . . . . . . . 93 80 49 . . . . . Highest-Rated Ally 49 | . . . . 31 . 15 . . . . . . . . 31 41 49 . . . . . Total Orders . | . . . . . . . . . . . . . . . . . . . . . . . Ally Attacks 83 | . . . . 18 . 18 . . . . . . . . 24 12 11 . . . . . Total Damage 1624 | . . . . 190 . 335 . . . . . . . . 472 294 333 . . . . . Kills 10 | . . . . 3 . 2 . . . . . . . . 3 1 1 . . . . . Allies Corrupted 1 | . . . . . . . . . . . . . . . . . 1 . . . . . Allies Melted . | . . . . . . . . . . . . . . . . . . . . . . . Intel | -11 -10 -10 -10 -9 -8 -8 -8 -8 -7 -7 -7 -7 -6 -6 -6 -6 -5 -5 -5 -5 -4 -4 ------- Run | Scr Mat Min Exi Min Mat Gar Mat Gar Fac Gar Fac Gar Fac Gar Fac Gar Fac Gar Fac Gar Fac Was Robot Analysis Total . | . . . . . . . . . . . . . . . . . . . . . . . Derelict Logs Recovered 4 | . . 2 . 2 . . . . . . . . . . . . . . . . . . Drone Launches . | . . . . . . . . . . . . . . . . . . . . . . . Drone Recoveries . | . . . . . . . . . . . . . . . . . . . . . . . Exploration | -11 -10 -10 -10 -9 -8 -8 -8 -8 -7 -7 -7 -7 -6 -6 -6 -6 -5 -5 -5 -5 -4 -4 ------------- Run | Scr Mat Min Exi Min Mat Gar Mat Gar Fac Gar Fac Gar Fac Gar Fac Gar Fac Gar Fac Gar Fac Was Turns Passed 15225 | 134 712 755 376 444 716 660 1151 657 1798 532 892 599 456 480 1087 391 1471 271 464 591 438 150 Spaces Moved 7792 | 63 366 390 321 425 362 313 552 351 886 278 460 318 230 243 562 166 688 104 222 245 197 50 Core 5 | 4 1 . . . . . . . . . . . . . . . . . . . . . Treads 6388 | 59 286 . . . 178 313 552 351 886 278 460 318 230 243 562 166 688 104 222 245 197 50 Legs 1283 | . . 353 321 425 184 . . . . . . . . . . . . . . . . . Wheels 116 | . 79 37 . . . . . . . . . . . . . . . . . . . . Hover . | . . . . . . . . . . . . . . . . . . . . . . . Flight . | . . . . . . . . . . . . . . . . . . . . . . . Fastest Speed 50 | 50 100 115 90 90 90 160 160 160 163 163 160 160 162 162 162 162 165 167 166 165 165 160 Average Speed 156 | 153 150 183 112 90 130 160 160 161 163 163 161 160 162 162 162 164 166 204 174 165 165 163 Slowest Speed 350 | 160 350 260 190 90 170 160 160 163 240 163 163 160 162 162 163 165 246 250 246 166 165 165 Overloaded Moves . | . . . . . . . . . . . . . . . . . . . . . . . Propulsion Burnouts . | . . . . . . . . . . . . . . . . . . . . . . . Robots Hopped . | . . . . . . . . . . . . . . . . . . . . . . . Cave-ins Triggered . | . . . . . . . . . . . . . . . . . . . . . . . Exploration Rate (%) 41 | 6 81 69 70 64 38 50 65 65 25 44 20 62 9 43 22 45 21 38 9 57 8 43 Regions Visited 22 Branch Regions 3 Pre-discovered Areas 1 | . . . 1 . . . . . . . . . . . . . . . . . . . Known Exits Taken 8 | . . . . . 1 . 1 . 1 . 1 . 1 . 1 . 1 . 1 . . . Unknown Exits Taken 5 | 1 1 1 1 1 . . . . . . . . . . . . . . . . . . Scrap Searched 3 | . . 1 . 2 . . . . . . . . . . . . . . . . . . Spaces Dug 208 | . . . . 36 6 4 14 5 18 17 . 2 . . . 15 5 12 . 69 5 . Terrain Destroyed 441 | . . . . 63 7 5 14 60 23 23 . 2 32 28 3 44 15 39 . 77 5 1 Melee 36 | . . . . . 6 . 2 . 18 1 . 2 . . . . 5 . . . 2 . Projectile 40 | . . . . . 1 1 . . 5 2 . . 3 1 3 . 10 2 . 8 3 1 AOE 365 | . . . . 63 . 4 12 60 . 20 . . 29 27 . 44 . 37 . 69 . . Terrain Rammed . | . . . . . . . . . . . . . . . . . . . . . . . Walls Destroyed . | . . . . . . . . . . . . . . . . . . . . . . . Machines Disabled . | . . . . . . . . . . . . . . . . . . . . . . . Actions | -11 -10 -10 -10 -9 -8 -8 -8 -8 -7 -7 -7 -7 -6 -6 -6 -6 -5 -5 -5 -5 -4 -4 --------- Run | Scr Mat Min Exi Min Mat Gar Mat Gar Fac Gar Fac Gar Fac Gar Fac Gar Fac Gar Fac Gar Fac Was Total 9926 | 82 452 422 336 461 551 419 770 403 1158 316 588 363 285 292 718 251 883 138 299 354 303 82 Wait 1079 | 1 20 3 . 13 92 48 148 13 156 9 69 13 33 14 106 51 81 10 63 46 86 4 Move 7779 | 62 365 389 320 424 362 312 552 350 886 277 460 317 230 242 562 165 688 103 222 244 197 50 Hop . | . . . . . . . . . . . . . . . . . . . . . . . Pick Up 130 | 3 8 7 5 1 22 4 8 3 15 2 8 1 2 4 8 3 9 2 6 4 3 2 Fast Attach 44 | 7 7 3 . . 4 . 1 . 7 . 2 . 1 . 4 1 3 . 2 1 . 1 Attach 29 | . . . . . 5 . . . 3 . 2 . 2 1 1 1 5 2 2 . 4 1 Detach 1 | . . . . . . . . . . . . . . . . . 1 . . . . . Swap 175 | . 4 1 4 7 9 9 9 9 22 3 15 8 2 9 8 8 20 5 1 14 5 3 Drop 130 | . 4 10 3 . 17 4 12 3 19 2 15 . 2 4 11 4 6 1 3 4 2 4 Fire 424 | 8 39 4 . 13 16 22 27 25 25 22 15 13 12 18 12 18 62 11 . 41 4 17 Melee 90 | . . . 4 . 19 20 5 . 24 1 . 10 . . . . 5 . . . 2 . Ram 1 | . 1 . . . . . . . . . . . . . . . . . . . . . Kick 11 | . . 5 . 3 3 . . . . . . . . . . . . . . . . . Crush 29 | 1 4 . . . 2 . 8 . 1 . 2 1 1 . 6 . 3 . . . . . Escape Stasis 4 | . . . . . . . . . . . . . . . . . . 4 . . . . Rewire . | . . . . . . . . . . . . . . . . . . . . . . . Trap . | . . . . . . . . . . . . . . . . . . . . . . . Miscellaneous . | . . . . . . . . . . . . . . . . . . . . . . . Route ------- -11/Scrapyard -10/Materials (discovered 3 exits: [*Mat x2] / *Min) -10/Mines (discovered 2 exits: [*Mat] / *Exi) -10/Exiles -9/Mines (discovered 2 exits: *Mat x2) -8/Materials (discovered 3 exits: *Fac x2 / Gar) -8/Garrison -8/Materials (discovered 3 exits: *Fac x2 / Gar) -8/Garrison (discovered 3 exits: *Fac x3) -7/Factory (discovered 2 exits: *Fac / Gar) -7/Garrison -7/Factory (discovered 2 exits: [*Sto] / Gar) -7/Garrison (discovered 2 exits: *Fac x2) -6/Factory -6/Garrison -6/Factory (discovered 4 exits: *Fac / *Low x2 / Gar) -6/Garrison -5/Factory (discovered 3 exits: Fac / [*Upp] / Gar) -5/Garrison -5/Factory -5/Garrison (discovered 2 exits: *Fac x2) -4/Factory -4/Waste History --------- Turn | Location | Event 14 | -11/Scrapyard | Discovered new exit (range 15) 135 | -11/Scrapyard | Entered Materials 307 | -10/Materials | Build established: Mutant 394 | -10/Materials | Discovered new exit (range 16) 578 | -10/Materials | Discovered new exit (range 10) 761 | -10/Materials | Discovered new exit (range 9) 847 | -10/Materials | Entered Mines 854 | -10/Mines | Met a Derelict shopkeep closing up shop 1038 | -10/Mines | Deemed a non-threat by the Exiles lab entrance 1038 | -10/Mines | Discovered new exit (range 5) 1209 | -10/Mines | Discovered new exit (range 7) 1247 | -10/Mines | Learned Materials non-interactive machine intel 1268 | -10/Mines | Learned location of 2 exits from Materials 1602 | -10/Mines | Entered Exiles 1651 | -10/Exiles | Met 8R-AWN 1674 | -10/Exiles | Met EX-HEX 1735 | -10/Exiles | Met EX-DEC 1769 | -10/Exiles | Learned location of Zion (-6) 1790 | -10/Exiles | Met EX-BIN 1808 | -10/Exiles | Aligned with FarCom system 1809 | -10/Exiles | Given EX-Vault access code 1837 | -10/Exiles | Opened EX-Vault 1843 | -10/Exiles | Found Potential Leg 1846 | -10/Exiles | Found Potential Leg 1871 | -10/Exiles | Warned to stay clear of 0b10 Research branches 1968 | -10/Exiles | Discovered new exit (range 12) 1978 | -10/Exiles | Left Exiles lab with Potential Leg 1978 | -10/Exiles | Entered Mines 1988 | -9/Mines | Discovered new exit (range 10) 1995 | -9/Mines | Met a Derelict bent on vengeance 2018 | -9/Mines | Learned 2 Materials zone layouts 2083 | -9/Mines | Discovered new exit (range 5) 2086 | -9/Mines | Received a Mining Laser from a helpful Derelict 2163 | -9/Mines | Learned Materials interactive machine intel 2173 | -9/Mines | A weapon hastily lodged in a ceiling crevice suddenly fell to the ground 2217 | -9/Mines | Assembled infested the area 2422 | -9/Mines | Entered Materials 2422 | -8/Materials | Evolved 4 slots: Propulsion x1, Utility x2, Weapon x1 2423 | -8/Materials | Identified exit to Factory 2425 | -8/Materials | Loaded intel: 44 non-interactive machine locations 2426 | -8/Materials | Loaded intel: 19 interactive machine locations 2643 | -8/Materials | Repaired Structural Scanner 2961 | -8/Materials | Build established: Skirmisher 3138 | -8/Materials | Identified exit to Garrison 3138 | -8/Materials | Entered Garrison 3143 | -8/Garrison | Triggered checkpoint 3180 | -8/Garrison | Triggered checkpoint 3190 | -8/Garrison | Triggered checkpoint 3629 | -8/Garrison | Triggered checkpoint 3644 | -8/Garrison | Triggered checkpoint 3710 | -8/Garrison | Triggered checkpoint 3731 | -8/Garrison | Destroyed 14 combat bots 3758 | -8/Garrison | Discovered new exit (range 15) 3791 | -8/Garrison | Installed Relay Interface Framework 3798 | -8/Garrison | Entered Materials 4196 | -8/Materials | Repaired Lgt. Armor Plating 4508 | -8/Materials | Discovered exit to Factory (range 15) 4692 | -8/Materials | Central database locked down 4739 | -8/Materials | Discovered exit to Factory (range 11) 4949 | -8/Materials | Identified exit to Garrison 4949 | -8/Materials | Entered Garrison 4999 | -8/Garrison | Triggered checkpoint 5005 | -8/Garrison | Triggered checkpoint 5089 | -8/Garrison | Discovered exit to Factory (range 9) 5162 | -8/Garrison | Triggered checkpoint 5174 | -8/Garrison | Triggered checkpoint 5189 | -8/Garrison | Destroyed 10 combat bots 5246 | -8/Garrison | Discovered exit to Factory (range 10) 5270 | -8/Garrison | Expanded RIF knowledge: Patrol Navigation 5414 | -8/Garrison | Discovered exit to Factory (range 8) 5479 | -8/Garrison | Triggered checkpoint 5519 | -8/Garrison | Garrison Relay disabled 5606 | -8/Garrison | Entered Factory 5606 | -7/Factory | Evolved 2 slots: Utility x2 5948 | -7/Factory | Build established: Mutant 6022 | -7/Factory | Repaired Hvy. Ion Engine 6480 | -7/Factory | Build established: Tank 7043 | -7/Factory | Discovered new exit (range 5) 7404 | -7/Factory | Identified exit to Garrison 7404 | -7/Factory | Entered Garrison 7498 | -7/Garrison | Triggered checkpoint 7528 | -7/Garrison | Triggered checkpoint 7607 | -7/Garrison | Triggered checkpoint 7639 | -7/Garrison | Triggered checkpoint 7724 | -7/Garrison | Build established: Skirmisher 7766 | -7/Garrison | Discovered new exit (range 10) 7791 | -7/Garrison | Expanded RIF knowledge: Coupler Efficiency 7936 | -7/Garrison | Entered Factory 8269 | -7/Factory | Fabricated Thermal Generator? 8477 | -7/Factory | Discovered new exit (range 9) 8828 | -7/Factory | Identified exit to Garrison 8828 | -7/Factory | Entered Garrison 9040 | -7/Garrison | Triggered checkpoint 9048 | -7/Garrison | Triggered checkpoint 9123 | -7/Garrison | Discovered new exit (range 10) 9194 | -7/Garrison | Triggered checkpoint 9338 | -7/Garrison | Discovered new exit (range 10) 9361 | -7/Garrison | Expanded RIF knowledge: Command Fork 9427 | -7/Garrison | Entered Factory 9427 | -6/Factory | Evolved 2 slots: Propulsion x1, Utility x1 9883 | -6/Factory | Identified exit to Garrison 9883 | -6/Factory | Entered Garrison 9945 | -6/Garrison | Triggered checkpoint 10024 | -6/Garrison | Triggered checkpoint 10110 | -6/Garrison | Discovered new exit (range 10) 10134 | -6/Garrison | Expanded RIF knowledge: Coupler Efficiency 10172 | -6/Garrison | Triggered checkpoint 10214 | -6/Garrison | Garrison Relay disabled 10363 | -6/Garrison | Entered Factory 10544 | -6/Factory | Discovered new exit (range 6) 10759 | -6/Factory | Allied Derelicts emerged from ambush trap array 10998 | -6/Factory | Fabricated Imp. Matter Compressor? 11060 | -6/Factory | Discovered new exit (range 21) 11088 | -6/Factory | Identified exit to Lower Caves 11450 | -6/Factory | Identified exit to Garrison 11450 | -6/Factory | Entered Garrison 11459 | -6/Garrison | Expanded RIF knowledge: Threat Obfuscation 11515 | -6/Garrison | Triggered checkpoint 11638 | -6/Garrison | Discovered new exit (range 19) 11738 | -6/Garrison | Triggered checkpoint 11780 | -6/Garrison | Garrison Relay disabled 11841 | -6/Garrison | Entered Factory 11841 | -5/Factory | Accompanied by 1 ally 11841 | -5/Factory | Evolved 2 slots: Utility x2 12144 | -5/Factory | Build established: Bothacker-Mutant 12157 | -5/Factory | Repaired Transmission Jammer 12162 | -5/Factory | Discovered new exit (range 134) 12676 | -5/Factory | Build established: Bothacker-Skirmisher 12889 | -5/Factory | Discovered new exit (range 16) 13117 | -5/Factory | Fabricated Arm. Treads? 13166 | -5/Factory | Lost 3 parts (2n1w) 13312 | -5/Factory | Identified exit to Garrison 13312 | -5/Factory | Entered Garrison 13396 | -5/Garrison | Triggered checkpoint 13416 | -5/Garrison | Triggered checkpoint 13416 | -5/Garrison | Triggered checkpoint 13484 | -5/Garrison | Destroyed 12 combat bots 13533 | -5/Garrison | Discovered new exit (range 11) 13573 | -5/Garrison | Expanded RIF knowledge: Watcher Feeds 13583 | -5/Garrison | Entered Factory 13903 | -5/Factory | Repaired Imp. Cooling System 14047 | -5/Factory | Identified exit to Garrison 14047 | -5/Factory | Entered Garrison 14076 | -5/Garrison | Build established: Bothacker-Gunner 14090 | -5/Garrison | Triggered checkpoint 14090 | -5/Garrison | Triggered checkpoint 14172 | -5/Garrison | Destroyed 7 combat bots 14176 | -5/Garrison | Triggered checkpoint 14302 | -5/Garrison | Discovered new exit (range 8) 14464 | -5/Garrison | Discovered new exit (range 13) 14492 | -5/Garrison | Expanded RIF knowledge: Robot Detection 14550 | -5/Garrison | Triggered checkpoint 14564 | -5/Garrison | Garrison Relay disabled 14638 | -5/Garrison | Entered Factory 14638 | -4/Factory | Evolved 2 slots: Utility x2 14935 | -4/Factory | Build established: Botlord-Mutant 15076 | -4/Factory | Sucked down chute 15076 | -4/Factory | Entered Waste 15126 | -4/Waste | Spotted C-40 Crusher 15132 | -4/Waste | Destroyed C-40 Crusher 15132 | -4/Waste | Destroyed C-40 Crusher 15144 | -4/Waste | Spotted C-40 Crusher 15151 | -4/Waste | Destroyed C-40 Crusher 15159 | -4/Waste | Spotted C-40 Crusher 15168 | -4/Waste | Destroyed C-40 Crusher 15171 | -4/Waste | Spotted C-40 Crusher 15177 | -4/Waste | Destroyed C-40 Crusher 15197 | -4/Waste | Spotted C-40 Crusher 15213 | -4/Waste | Crushed by Compactor (0 parts destroyed, 2 dropped) 15216 | -4/Waste | Crushed by Compactor (1 part destroyed) 15219 | -4/Waste | Crushed by Compactor (0 parts destroyed, 1 dropped) 15222 | -4/Waste | Crushed by Compactor (1 part destroyed, 1 dropped) 15225 | -4/Waste | Crushed by Compactor (1 part destroyed, 1 dropped) 15226 | -4/Waste | Self-destructed Last Messages --------------- 15207_ 5 Matter crushed. 15209_ 4 Matter crushed. 15209_ 262 Matter crushed. 15209_ HV Slug penetrates C-40 Crusher. 15209_ C-40 Crusher suffers critical hit (Destroy). 15210_ Antimatter Reactor crushed. 15212_ HV Slug penetrates C-40 Crusher. 15213_ Neutrino Core crushed. 15213_ Lyr. Light Armor Plating crushed. 15215_ HV Slug penetrates C-40 Crusher. 15216_ Hyp. Mass Driver crushed. 15219_ Mni. Assault Cannon crushed. 15222_ Hcp. Storage Unit crushed. 15222_ Imp. Cooling System crushed. 15225_ Lrn. Missile Launcher crushed. 15225_ KE Penetrator crushed. 15225_ Power Sword crushed. 15225_ Relay Coupler [Specialist] crushed. 15225_ Imp. Transmission Jammer crushed. 15225_ Mni. Assault Cannon crushed. Map ----- +----------------------------------------------------+ | ?????????????????????????????????????????????????? | | ?????????????????????????????????????????????????? | | ?????????????????????????????????????????????????? | | ?????????????????????????????????????????????????? | | ?????????????????????????????????????????????????? | | ?????????????????????????????????????????????????? | | ?????????????????????????????????????????????????? | | ?????????????????????????????????????????????????? | | ?????????????????????????????????????????????????? | | ????????######??????######???????????????????????? | | ????????# #??????# #???????????????????????? | | ????????# #??????# #???????????????????????? | | ????????# #??????# #???????????????????????? | | ????????# #??????# #???????????????????????? | | ??????### #??????# #???????????????????????? | | ??????# #??????# #???????????????????????? | | ??????# #??????# #???????????????????????? | | ??????? #??????# #???????????????????????? | | ???????? #??????# #???????????????????????? | | ????????# #??????# #???????????????????????? | | ????????# #??????# #???????????????????????? | | ????????# #??????# #???????????????????????? | | ????????# #??????# #???????????#???????????? | | ??????### ######## ]!######## ######??????? | | ??????# !!!%! %% ??? | | ??????# !!* !!!@CC *%= ??? | | ??????# = ! !!|CC ??? | | ??????# = =!! [%*]% % ??? | | ??????### * ;####### ######## ########????? | | ######??# ##?????# #????????? #???????????? | | #??# #??????# #???????????????????????? | | #??# #??????# #???????????????????????? | | #### #??????# #???????????????????????? | | #??????# #???????????????????????? | | #??????# #???????????????????????? | | #??????# #???????????????????????? | | #??????# #???????????????????????? | | #### !#??????# #???????????????????????? | | #??# ] #??????# #???????????????????????? | | #??# #??????# #???????????????????????? | | ######??# #??????# #???????????????????????? | | ????????# #??????# #???????????????????????? | | ????????######??????######???????????????????????? | | ?????????????????????????????????????????????????? | | ?????????????????????????????????????????????????? | | ?????????????????????????????????????????????????? | | ?????????????????????????????????????????????????? | | ?????????????????????????????????????????????????? | | ?????????????????????????????????????????????????? | | ?????????????????????????????????????????????????? | +----------------------------------------------------+ Best States ------------- Heat Dissipation 70 Energy Generation 19 Energy Capacity 315 Matter Stores 300 Matter Capacity 300 Sight Range 22 Terrain Scan Density 10 Jamming Range 14 Armor Coverage 600 Evasion (%) 57 Targeting Accuracy 16 Armor Integrity Analysis 40 Recoil Reduction 4 Offensive Hacking 20 Relay Coupler Types 3 Relay Coupler Value 78 Item Schematics ----------------- Hcp. Storage Unit | -10/Materials | Hacked Lgt. Fission Core | -8/Materials | Scanalyzed Lrn. Tractor Beam | -8/Materials | Extracted Greatsword | -8/Materials | Scanalyzed Hvy. Rocket Launcher | -8/Materials | Scanalyzed Thermal Generator | -8/Materials | Hacked Arm. Treads | -7/Factory | Scanalyzed Enh. Autogun | -7/Factory | Scanalyzed Mni. Assault Cannon | -7/Factory | Scanalyzed Armor Integrity Analyzer | -7/Factory | Scanalyzed Hvy. Armor Plating | -7/Factory | Scanalyzed Hvy. Ion Engine | -7/Factory | Scanalyzed Hrd. Heavy Armor Plating | -7/Factory | Scanalyzed Fission Core | -7/Factory | Hacked Robot Schematics ------------------ None Fabricated ------------ Thermal Generator | x2 | -7/Factory Imp. Matter Compressor | x1 | -6/Factory | Preloaded Arm. Treads | x2 | -5/Factory Alien Tech Used ----------------- None Achievements -------------- None Challenges ------------ None Game ------ Seed HeartCoordinationExtractor Manual? 0 Play Time 03:26:59 Cumulative 78.1 hours Start 2022.09.10 @ 17:41:43 End 2022.09.14 @ 19:07:05 Sessions 13 Manual Loads 0 Difficulty Rogue Special Mode None Game No. 137 Rogue 137 Adventurer 0 Explorer 0 Win Type - Total 1 Types 0/0/0/1/0/0/0/0/0 Lore% 56 Gallery% 64 Achievement% 48 Wizard Run 0 Options --------- ASCII 0 Keyboard 0 Movement Numpad Keybinds 0 Fullscreen 1 Font 14/SmallcapsGlow Map View 84x54 Tactical HUD 1 Map Filters NONE Filters NONE Steam 1 RUN: bb6afae8-363f-41b3-bcb9-b9b603686bbe